bitfinex/quotes_ETHUSD_20240701
["timestamp","ask_amount","ask_price","bid_price","bid_amount"]
[1719828434488,0.05734904,3484.2,3484.1,0.808]
[1719828434829,2.87008,3484.3,3484.1,0.808]
[1719828435029,0.0575977,3484.2,3484.1,0.808]
[1719828435263,2.87008,3484.3,3484.1,0.808]
[1719828435465,0.0575977,3484.2,3484.1,0.808]
[1719828435893,2.87008,3484.3,3484.1,0.808]
[1719828436035,0.0575977,3484.2,3484.1,0.808]
[1719828436231,2.87008,3484.3,3484.1,0.808]
[1719828436433,0.0575977,3484.2,3484.1,0.808]
[1719828436647,2.87008,3484.3,3484.1,0.808]
[1719828436853,0.0575977,3484.2,3484.1,0.808]
[1719828437054,2.87008,3484.3,3484.1,0.808]
[1719828437272,0.0575977,3484.2,3484.1,0.808]
[1719828437675,2.87008,3484.3,3484.1,0.808]
[1719828437891,0.0575977,3484.2,3484.1,0.808]
[1719828438272,2.87008,3484.3,3484.1,0.808]
[1719828438472,0.0575977,3484.2,3484.1,0.808]
[1719828438980,2.87008,3484.3,3484.1,0.808]
[1719828439154,0.0575977,3484.2,3484.1,0.808]
[1719828439556,5.73976,3484.5,3484.1,0.808]
[1719828439792,0.05716839,3484.2,3484.1,0.808]
[1719828439963,2.86995,3484.4,3484.1,0.808]
[1719828440168,0.05760516,3484.2,3484.1,0.808]
[1719828440670,2.86995,3484.4,3484.1,0.808]
[1719828440865,0.05766354,3484.3,3484.1,0.808]
[1719828443886,2.86986,3484.5,3484.1,0.808]
[1719828444097,0.05753163,3484.2,3484.1,0.808]
[1719828444297,2.86986,3484.5,3484.1,0.808]
[1719828444620,0.05753163,3484.2,3484.1,0.808]
[1719828444822,2.86986,3484.5,3484.1,0.808]
[1719828445025,0.05753163,3484.2,3484.1,0.808]
[1719828445196,2.86986,3484.5,3484.1,0.808]
[1719828445728,0.05764838,3484.4,3484.1,0.808]
[1719828451729,2.92758838,3484.4,3484.1,0.808]
[1719828455241,2.87002,3484.3,3484.1,0.808]
[1719828455742,0.05761313,3484.2,3484.1,0.808]
[1719828455942,2.87002,3484.3,3484.1,0.808]
[1719828456146,0.05761313,3484.2,3483.7,2.4659]
[1719828456447,2.87026,3484.0,3483.5,9.6748]
[1719828456657,2.87049,3483.8,3483.5,8.128]
[1719828456958,2.87049,3483.8,3483.5,7.32]
[1719828456959,2.87059,3483.6,3483.5,7.32]
[1719828457143,2.87059,3483.6,3483.0,2.3548]
[1719828457317,2.87067,3483.5,3483.0,2.3548]
[1719828457655,2.87067,3483.5,3483.2,0.808]
[1719828457859,5.14907,3483.7,3483.2,0.808]
[1719828458034,2.8706,3483.6,3483.0,2.3548]
[1719828458236,2.92766822,3483.6,3483.3,0.808]
[1719828458448,2.8706,3483.6,3483.3,0.808]
[1719828458623,0.05700982,3483.5,3483.3,0.808]
[1719828458817,0.05700982,3483.5,3482.9,7.32]
[1719828458818,2.87075,3483.4,3482.9,7.32]
[1719828459022,2.87075,3483.4,3483.1,0.808]
[1719828459229,0.05695774,3483.3,3483.1,0.808]
[1719828459442,2.87075,3483.4,3483.1,0.808]
[1719828459852,0.05683222,3483.3,3483.1,0.808]
[1719828460375,2.87075,3483.4,3483.1,0.808]
[1719828460569,0.02077972,3483.5,3482.9,7.32]
[1719828460570,2.87084,3483.3,3482.9,7.32]
[1719828460728,2.92767222,3483.3,3483.0,0.808]
[1719828461674,2.87084,3483.3,3483.0,0.808]
[1719828463283,0.05669028,3483.2,3483.0,0.808]
[1719828463484,2.89150972,3483.5,3483.0,1.11798]
[1719828463670,0.05681642,3483.4,3483.0,0.808]
[1719828464172,2.92757642,3483.4,3483.0,0.808]
[1719828467583,2.92757642,3483.4,3483.2,0.808]
[1719828470199,5.26634,3483.3,3482.7,2.2918]
[1719828470385,2.87092,3483.2,3482.5,7.32]
[1719828470586,2.92770782,3483.2,3482.9,0.808]
[1719828471062,2.92770782,3483.2,3482.5,7.32]
[1719828471264,2.92770782,3483.2,3483.0,0.808]
[1719828479216,0.05678782,3483.2,3483.0,0.808]
[1719828479419,2.87077,3483.4,3483.0,0.808]
[1719828479720,2.87077,3483.4,3482.8,2.3734]
[1719828479721,2.87077,3483.4,3483.3,0.808]
[1719828480426,2.87046,3483.8,3483.3,0.808]
[1719828480582,2.87046,3483.8,3483.7,0.808]
[1719828481623,5.15321,3484.1,3483.7,0.808]
[1719828481842,2.89079972,3484.3,3483.9,0.808]
[1719828482045,2.89079972,3484.3,3483.5,2.87067]
[1719828482046,2.2556,3484.3,3484.2,0.808]
[1719828484139,2.30923091,3484.3,3484.2,0.808]
[1719828485145,5.17932091,3484.3,3484.0,0.808]
[1719828485936,2.30923091,3484.3,3484.0,0.808]
[1719828486973,5.17930091,3484.3,3484.0,0.808]
[1719828487154,2.30923091,3484.3,3484.0,0.808]
[1719828488239,2.30923091,3484.3,3483.5,7.32]
[1719828488240,2.827148,3484.3,3483.5,7.32]
[1719828488451,2.87042,3483.9,3483.5,7.32]
[1719828488676,2.30923091,3484.3,3483.7,0.808]
[1719828488877,0.05336215,3483.8,3483.7,5.33734]
[1719828489171,5.16809,3484.6,3483.8,2.87042]
[1719828489475,5.16809,3484.6,3484.2,0.808]
[1719828489679,2.92345027,3484.5,3484.2,0.808]
[1719828491367,0.05360027,3484.5,3484.4,0.808]
[1719828492579,2.86969,3484.7,3484.4,0.808]
[1719828492783,0.05360027,3484.5,3484.4,0.808]
[1719828492970,2.86969,3484.7,3484.4,0.808]
[1719828493986,2.92344864,3484.6,3484.4,0.808]
[1719828494287,2.94422836,3484.6,3484.4,0.808]
[1719828494883,2.92344864,3484.6,3484.4,0.808]
[1719828505530,0.05365864,3484.6,3484.4,0.808]
[1719828508970,2.89045972,3484.7,3484.4,0.808]
[1719828509170,0.05361387,3484.5,3484.4,0.808]
[1719828509372,2.86977,3484.6,3484.4,0.808]
[1719828509610,0.05361387,3484.5,3484.4,0.808]
[1719828512014,0.05361387,3484.5,3484.2,0.808]
[1719828512216,2.2745,3484.4,3483.5,12.64952]
[1719828512403,0.02077972,3484.3,3483.8,0.808]
[1719828512614,2.87026,3484.0,3483.5,9.7789]
[1719828512798,2.87026,3484.0,3483.7,0.808]
[1719828513128,0.05341976,3483.9,3483.7,0.808]
[1719828514106,2.92376976,3483.9,3483.4,2.4589]
[1719828514309,2.92376976,3483.9,3483.8,0.808]
[1719828518072,2.92376976,3483.9,3483.2,9.6219]
[1719828518203,2.92376976,3483.9,3483.2,7.32]
[1719828518204,2.87064,3483.6,3483.2,7.32]
[1719828518403,2.87064,3483.6,3483.3,0.808]
[1719828518611,0.04944764,3483.5,3483.3,0.808]
[1719828519135,2.92012764,3483.5,3483.3,0.808]
[1719828519304,2.92012764,3483.5,3483.2,0.808]
[1719828519640,2.87081,3483.4,3483.2,0.808]
[1719828520017,0.04929306,3483.3,3483.2,0.808]
[1719828522845,2.92013306,3483.3,3483.2,0.808]
[1719828524043,2.92013306,3483.3,3482.7,9.6249]
[1719828524205,2.92013306,3483.3,3483.2,0.808]
[1719828524404,2.87084,3483.3,3483.2,0.808]
[1719828524643,2.92012743,3483.3,3483.2,0.808]
[1719828527721,2.92012743,3483.3,3482.7,5.16633501]
[1719828527919,2.92012743,3483.3,3483.2,0.808]
[1719828530458,0.04928743,3483.3,3483.2,0.808]
[1719828530754,2.87077,3483.4,3483.2,0.808]
[1719828531053,2.87059,3483.6,3483.3,0.808]
[1719828531226,2.87059,3483.6,3483.5,0.808]
[1719828532555,2.87039,3483.9,3483.5,0.808]
[1719828532731,2.87039,3483.9,3483.7,0.808]
[1719828536341,2.89096972,3484.1,3483.7,0.808]
[1719828536541,2.87026,3484.0,3483.7,0.808]
[1719828540747,2.4336,3484.2,3483.7,0.808]
[1719828540938,2.89077972,3484.4,3484.1,0.808]
[1719828541259,2.87002,3484.3,3484.1,0.808]
[1719828541562,2.87009,3484.2,3483.9,0.808]
[1719828541875,2.89086972,3484.2,3483.9,0.808]
[1719828542052,2.87009,3484.2,3483.9,0.808]
[1719828542256,5.73999,3484.4,3483.9,0.808]
[1719828542462,2.87002,3484.3,3483.9,0.808]
[1719828542956,2.89079972,3484.3,3483.9,0.808]
[1719828543168,0.02077972,3484.2,3483.9,0.808]
[1719828544145,0.0471339,3484.1,3483.9,0.808]
[1719828546764,2.89079972,3484.3,3483.9,0.808]
[1719828546969,0.04758041,3484.2,3483.9,0.32845052]
[1719828547279,2.86978,3484.6,3484.1,0.808]
[1719828547481,2.3524,3484.8,3484.3,0.808]
[1719828547656,2.86985,3484.5,3484.3,0.808]
[1719828549173,2.89045972,3484.7,3484.3,0.808]
[1719828549686,5.24277972,3484.8,3484.5,0.808]
[1719828553864,2.89046972,3484.7,3484.5,0.808]
[1719828554053,2.89046972,3484.7,3484.3,0.808]
[1719828554587,2.89046972,3484.7,3483.8,5.19462]
[1719828554778,2.8699,3484.5,3484.0,0.808]
[1719828555081,5.3922572,3484.4,3484.0,0.808]
[1719828555779,0.0684772,3484.4,3484.0,0.808]
[1719828555985,0.04769748,3484.4,3484.0,0.808]
[1719828557076,2.91762748,3484.4,3484.0,0.808]
[1719828559502,2.91762748,3484.4,3484.2,0.808]
[1719828561057,0.04769748,3484.4,3484.2,0.808]
[1719828561758,0.04763607,3484.3,3484.2,0.808]
[1719828562011,2.89054972,3484.6,3484.2,0.808]
[1719828562259,0.04763607,3484.3,3484.2,0.808]
[1719828562460,2.86985,3484.5,3484.2,0.808]
[1719828562694,0.04763607,3484.3,3484.2,0.808]
[1719828563192,2.86985,3484.5,3484.2,0.808]
[1719828563393,0.04769445,3484.4,3484.2,0.808]
[1719828565295,0.04769445,3484.4,3484.2,1.46859026]
[1719828565592,0.04745122,3484.3,3484.2,1.46859026]
[1719828565803,0.02077972,3484.6,3484.2,1.46859026]
[1719828566005,0.04753564,3484.5,3484.2,0.808]
[1719828567962,0.04753564,3484.5,3484.0,0.808]
[1719828567963,2.3681,3484.3,3484.0,0.808]
[1719828568190,0.06818871,3484.2,3484.0,0.808]
[1719828568398,0.04740899,3484.2,3484.0,0.808]
[1719828569009,0.04751478,3484.1,3484.0,0.808]
[1719828569207,2.38887972,3484.3,3484.0,0.808]
[1719828569412,0.04751478,3484.1,3484.0,0.808]
[1719828569612,2.38887972,3484.3,3484.0,0.808]
[1719828569903,0.04751478,3484.1,3484.0,0.808]
[1719828570114,2.3681,3484.3,3484.0,0.808]
[1719828570286,0.04751478,3484.1,3484.0,0.808]
[1719828570486,2.3681,3484.3,3484.0,0.808]
[1719828570684,0.04751478,3484.1,3484.0,0.808]
[1719828570888,2.3681,3484.3,3484.0,0.808]
[1719828571088,0.04751478,3484.1,3484.0,0.808]
[1719828571288,2.89063972,3484.5,3484.0,0.808]
[1719828571496,0.04728844,3484.1,3484.0,0.808]
[1719828571704,2.89063972,3484.5,3484.0,0.808]
[1719828572024,2.89063972,3484.5,3484.1,0.808]
[1719828572203,0.04768992,3484.4,3484.1,0.808]
[1719828573314,2.91761992,3484.4,3484.1,0.808]
[1719828576885,2.91761992,3484.4,3484.3,0.808]
[1719828577987,2.91761992,3484.4,3484.1,0.808]
[1719828578323,0.04768992,3484.4,3484.1,0.808]
[1719828579623,0.04768992,3484.4,3484.3,0.808]
[1719828580324,2.86978,3484.6,3484.3,0.808]
[1719828580528,0.04768539,3484.4,3484.3,0.808]
[1719828580691,2.86978,3484.6,3484.3,0.808]
[1719828580900,0.04768539,3484.4,3484.3,0.808]
[1719828581095,2.86978,3484.6,3484.3,0.808]
[1719828581305,0.04768539,3484.4,3484.3,0.808]
[1719828581493,2.3114,3484.8,3484.3,0.808]
[1719828581694,0.04768539,3484.4,3484.3,0.808]
[1719828582306,2.33217972,3484.8,3484.3,0.808]
[1719828582497,0.04768539,3484.4,3484.3,0.808]
[1719828582998,5.20177972,3484.8,3484.3,0.808]
[1719828583197,0.0478605,3484.7,3484.3,0.808]
[1719828583416,5.20177972,3484.8,3484.3,0.808]
[1719828583618,0.0478605,3484.7,3484.3,0.808]
[1719828583823,2.3114,3484.8,3484.3,0.808]
[1719828584215,0.06864022,3484.7,3484.3,0.808]
[1719828585303,2.86977,3484.6,3484.3,0.808]
[1719828585504,2.89068972,3484.5,3483.9,2.2738]
[1719828585696,2.93843348,3484.5,3484.1,0.808]
[1719828586830,2.93843348,3484.5,3483.6,10.19053]
[1719828586831,2.86993,3484.4,3483.6,10.19053]
[1719828587063,5.33743,3484.4,3484.1,0.808]
[1719828587207,0.04771116,3484.3,3484.1,0.808]
[1719828593312,2.93857088,3484.3,3483.7,1.245813]
[1719828593641,2.93857088,3484.3,3484.0,0.808]
[1719828594939,2.93857088,3484.3,3483.7,1.245813]
[1719828595142,2.93857088,3484.3,3484.0,0.808]
[1719828600649,2.8701,3484.2,3484.0,0.808]
[1719828600851,2.91774218,3484.2,3484.0,0.808]
[1719828601153,2.91774218,3484.2,3482.6,0.90471314]
[1719828601154,0.02077972,3484.1,3483.2,2.8709]
[1719828601356,2.87043,3483.8,3483.2,2.4078]
[1719828601519,5.16493,3483.8,3483.3,0.808]
[1719828603965,0.04723447,3483.6,3483.3,0.808]
[1719828604122,0.04723447,3483.6,3482.4,2.87157]
[1719828604123,2.87059,3483.6,3482.7,2.3107]
[1719828604324,2.87059,3483.6,3483.1,0.808]
[1719828604325,2.87081,3483.4,3483.1,0.808]
[1719828604877,0.0470975,3483.3,3483.2,0.808]
[1719828605182,2.87068,3483.5,3483.2,0.808]
[1719828605322,0.0470975,3483.3,3483.2,0.808]
[1719828605527,2.87068,3483.5,3483.2,0.808]
[1719828605723,0.0470975,3483.3,3483.2,0.808]
[1719828605944,2.87068,3483.5,3483.2,0.808]
[1719828606466,0.0471559,3483.4,3483.2,0.808]
[1719828608476,2.89129972,3483.7,3483.2,0.808]
[1719828608477,2.87059,3483.6,3483.2,0.808]
[1719828608641,2.87059,3483.6,3483.4,0.808]
[1719828609689,2.87067,3483.5,3483.4,0.808]
[1719828612243,2.87067,3483.5,3483.2,0.808]
[1719828613659,2.87067,3483.5,3483.4,0.808]
[1719828614050,2.89137972,3483.6,3483.4,0.808]
[1719828614248,5.18570972,3483.8,3483.4,0.808]
[1719828614452,5.18570972,3483.8,3483.6,0.808]
[1719828614647,5.16493,3483.8,3483.6,0.808]
[1719828615478,2.87051,3483.7,3483.6,0.808]
[1719828616559,2.8706,3483.6,3483.4,0.808]
[1719828616782,5.16493,3483.8,3483.4,0.808]
[1719828616960,2.87051,3483.7,3483.4,0.808]
[1719828617999,2.87051,3483.7,3483.5,0.808]
[1719828619322,0.04724048,3483.6,3483.5,0.808]
[1719828626604,2.89111972,3483.9,3483.5,0.808]
[1719828626808,0.04724048,3483.6,3483.5,0.808]
[1719828627308,2.87043,3483.8,3483.5,0.808]
[1719828627508,0.04724048,3483.6,3483.5,0.808]
[1719828627688,2.87043,3483.8,3483.5,0.808]
[1719828627887,0.04724048,3483.6,3483.5,0.808]
[1719828628089,2.87043,3483.8,3483.5,0.808]
[1719828628290,0.04724048,3483.6,3483.5,0.808]
[1719828628709,2.87043,3483.8,3483.5,0.808]
[1719828628911,0.04724048,3483.6,3483.5,0.808]
[1719828629111,2.87043,3483.8,3483.5,0.808]
[1719828629311,0.04724048,3483.6,3483.5,0.808]
[1719828629630,2.87043,3483.8,3483.5,0.808]
[1719828629809,0.04724754,3483.6,3483.5,0.808]
[1719828630201,2.87043,3483.8,3483.5,0.808]
[1719828630403,0.04724754,3483.6,3483.5,0.808]
[1719828630878,2.87043,3483.8,3483.5,0.808]
[1719828631079,0.04730594,3483.7,3483.5,0.808]
[1719828631311,2.91781594,3483.7,3483.3,0.808]
[1719828631511,5.38378972,3483.7,3482.9,5.28583]
[1719828631716,0.0794726,3483.6,3483.3,0.808]
[1719828632581,2.87073,3483.5,3483.3,0.808]
[1719828632779,2.87073,3483.5,3483.2,0.808]
[1719828633030,0.07938195,3483.4,3483.2,0.808]
[1719828633704,2.4362,3483.3,3482.8,3.41827848]
[1719828633883,2.4362,3483.3,3483.0,0.808]
[1719828635516,5.30704,3483.3,3483.0,0.808]
[1719828635693,0.07925488,3483.2,3483.0,0.808]
[1719828635894,5.30704,3483.3,3483.0,0.808]
[1719828636095,0.07925488,3483.2,3482.8,0.54707848]
[1719828636420,5.30704,3483.3,3483.0,0.808]
[1719828636720,0.07925488,3483.2,3483.0,0.808]
[1719828637144,5.30704,3483.3,3483.0,0.808]
[1719828637607,0.07925488,3483.2,3483.0,0.808]
[1719828637917,5.30704,3483.3,3483.0,0.808]
[1719828638114,0.07919739,3483.1,3483.0,0.808]
[1719828638524,5.30704,3483.3,3483.0,0.808]
[1719828638817,0.07919739,3483.1,3483.0,0.808]
[1719828639017,5.30704,3483.3,3483.0,0.808]
[1719828639217,0.07919739,3483.1,3483.0,0.808]
[1719828639419,5.30704,3483.3,3483.0,0.808]
[1719828639625,0.07919739,3483.1,3483.0,0.808]
[1719828639783,5.30704,3483.3,3483.0,0.808]
[1719828639991,0.07919739,3483.1,3483.0,0.808]
[1719828640214,2.87092,3483.2,3483.0,0.808]
[1719828640418,0.07919739,3483.1,3483.0,0.808]
[1719828640720,2.95025739,3483.1,3482.7,0.808]
[1719828640923,2.97103711,3483.1,3482.7,0.808]
[1719828641805,2.97103711,3483.1,3482.9,0.808]
[1719828642530,2.97103711,3483.1,3482.4,7.32]
[1719828642698,2.97103711,3483.1,3482.8,0.808]
[1719828645099,0.07919739,3483.1,3482.8,0.808]
[1719828645520,2.95019739,3483.1,3482.8,0.808]
[1719828653536,2.95019739,3483.1,3482.5,5.33299]
[1719828653745,2.871,3483.1,3482.9,0.808]
[1719828654238,0.07901117,3483.0,3482.9,0.808]
[1719828655647,0.07901117,3483.0,3482.9,0.808]
[1719828656647,2.871,3483.1,3482.9,0.808]
[1719828656810,0.07899958,3483.0,3482.9,0.808]
[1719828659950,0.07914659,3483.0,3482.9,0.808]
[1719828660143,5.25626,3483.4,3482.9,0.808]
[1719828660335,5.25626,3483.4,3483.2,0.808]
[1719828660507,2.87084,3483.3,3483.2,0.808]
[1719828662745,2.3855,3483.4,3483.2,0.808]
[1719828663456,2.2721,3483.7,3483.2,0.808]
[1719828663754,2.2721,3483.7,3483.6,0.808]
[1719828663755,5.14261,3483.7,3483.6,0.808]
[1719828664250,5.22210654,3483.7,3483.6,0.808]
[1719828666037,0.07949654,3483.7,3483.6,0.808]
[1719828666419,2.8702,3484.1,3483.6,0.808]
[1719828666625,2.87026,3484.0,3483.9,0.808]
[1719828667954,2.87026,3484.0,3483.7,0.808]
[1719828667955,2.87035,3483.9,3483.7,0.808]
[1719828671164,2.87042,3483.8,3483.7,0.808]
[1719828671749,2.4398,3483.8,3483.0,2.3112]
[1719828671958,2.4398,3483.8,3483.4,0.808]
[1719828671959,2.87066,3483.6,3483.4,0.808]
[1719828672390,0.07553487,3483.5,3483.4,0.808]
[1719828673773,2.87051,3483.7,3483.4,0.808]
[1719828673977,0.07554344,3483.5,3483.4,0.808]
[1719828674183,2.87051,3483.7,3483.4,0.808]
[1719828674474,0.07554344,3483.5,3483.4,0.808]
[1719828674691,2.8706,3483.6,3483.4,0.808]
[1719828674873,0.07554344,3483.5,3483.4,0.808]
[1719828675246,2.87051,3483.7,3483.4,0.808]
[1719828675477,0.07554344,3483.5,3483.4,0.808]
[1719828675673,2.87051,3483.7,3483.4,0.808]
[1719828675874,0.07554344,3483.5,3483.4,0.808]
[1719828676037,2.87061,3483.6,3483.4,0.808]
[1719828676242,0.07554344,3483.5,3483.4,0.808]
[1719828681779,2.87051,3483.7,3483.4,0.808]
[1719828681976,0.07554344,3483.5,3483.0,2.36861583]
[1719828682277,3.71148569,3483.7,3483.4,0.808]
[1719828682478,3.69070597,3483.7,3483.4,0.808]
[1719828682636,0.07575289,3483.6,3483.4,0.808]
[1719828683062,2.94635289,3483.6,3483.4,0.808]
[1719828683471,3.85402778,3483.6,3483.4,0.808]
[1719828683675,0.07575289,3483.6,3483.4,0.808]
[1719828684178,0.07383875,3483.5,3483.4,0.808]
[1719828684377,5.24071,3483.7,3483.0,2.87102]
[1719828684539,0.07383875,3483.5,3483.4,0.808]
[1719828684740,5.24071,3483.7,3483.4,0.808]
[1719828684975,2.96526595,3483.6,3482.9,2.269]
[1719828685274,2.87084,3483.3,3483.0,0.808]
[1719828685579,0.07366278,3483.2,3483.0,0.808]
[1719828686560,5.33166,3483.4,3483.0,0.808]
[1719828686785,0.07360529,3483.1,3483.0,0.808]
[1719828686959,6.23528137,3483.4,3483.0,0.808]
[1719828687277,0.07360529,3483.1,3483.0,0.808]
[1719828687477,6.23528137,3483.4,3483.0,0.808]
[1719828687677,0.07360529,3483.1,3483.0,0.808]
[1719828688172,6.23528137,3483.4,3483.0,0.808]
[1719828688349,0.07360529,3483.1,3483.0,0.808]
[1719828688549,6.23528137,3483.4,3483.0,0.808]
[1719828688773,0.07372026,3483.3,3483.0,0.808]
[1719828689191,0.07372026,3483.3,3483.2,0.808]
[1719828690571,2.87044,3483.8,3483.2,3.67892]
[1719828690749,2.87044,3483.8,3483.6,0.808]
[1719828690750,0.82159497,3483.7,3483.6,0.808]
[1719828691683,0.82159497,3483.7,3483.4,0.808]
[1719828693082,0.84237469,3483.7,3482.9,5.35523]
[1719828693288,2.87067,3483.5,3483.4,0.808]
[1719828694394,2.94450069,3483.5,3483.4,0.808]
[1719828710688,2.94450069,3483.5,3483.2,0.808]
[1719828710874,2.94450069,3483.5,3482.9,5.35523]
[1719828711075,2.94450069,3483.5,3483.2,0.808]
[1719828712912,0.07383069,3483.5,3483.2,0.808]
[1719828719295,2.94450069,3483.5,3483.2,0.808]
[1719828723186,2.87076,3483.4,3482.9,5.35525]
[1719828725821,0.07084103,3483.3,3483.1,0.808]
[1719828730483,0.07084103,3483.3,3482.5,2.87146]
[1719828730484,5.14137,3483.2,3482.5,2.87146]
[1719828730688,2.87102,3483.1,3482.8,0.808]
[1719828730924,2.94190529,3483.1,3482.8,0.808]
[1719828731131,2.94190529,3483.1,3483.0,0.808]
[1719828733625,0.07088529,3483.1,3483.0,0.808]
[1719828733796,5.25227,3483.5,3483.0,0.808]
[1719828733997,5.25227,3483.5,3483.2,0.808]
[1719828739197,0.07105323,3483.4,3483.2,0.808]
[1719828741946,0.07105323,3483.4,3483.0,0.808]
[1719828746662,0.07105323,3483.4,3483.2,0.808]
[1719828751121,0.07105323,3483.4,3483.0,0.808]
[1719828752348,2.94181323,3483.4,3482.7,5.28842]
[1719828752644,2.94181323,3483.4,3482.9,0.808]
[1719828764768,2.87085,3483.3,3482.9,0.808]
[1719828765162,0.06973518,3483.2,3482.9,0.808]
[1719828765588,0.06973518,3483.2,3482.4,3.16233836]
[1719828765589,2.87113,3483.0,3482.4,3.16233836]
[1719828765792,2.87113,3483.0,3482.9,0.808]
[1719828769185,2.93829078,3483.0,3482.9,0.808]
[1719828773278,2.2638,3482.9,3482.2,1.80189493]
[1719828773530,2.87146,3482.6,3482.2,1.513699]
[1719828773668,2.87146,3482.6,3482.2,2.321699]
[1719828773868,0.06546656,3482.5,3482.2,2.321699]
[1719828774481,2.93697656,3482.5,3482.2,2.321699]
[1719828786716,2.93697656,3482.5,3482.2,1.513699]
[1719828786889,2.87166,3482.3,3482.2,1.513699]
[1719828787316,0.0651409,3482.3,3482.2,1.513699]
[1719828787545,5.29081,3482.5,3482.2,1.513699]
[1719828787754,0.06517278,3482.3,3482.2,1.513699]
[1719828787958,2.87159,3482.4,3482.2,1.513699]
[1719828788119,0.0651409,3482.3,3482.2,1.513699]
[1719828789521,2.9368009,3482.3,3482.2,1.513699]
[1719828790223,5.8084609,3482.3,3482.2,1.513699]
[1719828793740,8.95193699,3482.3,3482.2,1.513699]
[1719828798570,8.1291609,3482.3,3482.2,1.513699]
[1719828806943,8.1291609,3482.3,3482.2,1.5115227]
[1719828810586,11.0008209,3482.3,3482.2,1.5115227]
[1719828813965,8.1291609,3482.3,3482.2,1.5115227]
[1719828816954,11.8088209,3482.3,3482.2,1.5115227]
[1719828817155,13.27685799,3482.3,3482.2,1.5115227]
[1719828822862,12.46885799,3482.3,3482.2,1.5115227]
[1719828823380,16.27685799,3482.3,3482.2,1.5115227]
[1719828824355,12.59719799,3482.3,3482.2,1.5115227]
[1719828824563,15.46885799,3482.3,3482.2,1.5115227]
[1719828826109,12.59719799,3482.3,3482.2,1.5115227]
[1719828826309,15.46885799,3482.3,3482.2,1.5115227]
[1719828827006,12.59719799,3482.3,3482.2,1.5115227]
[1719828827415,15.46885799,3482.3,3482.2,1.5115227]
[1719828828024,12.59719799,3482.3,3482.2,1.5115227]
[1719828828385,15.46885799,3482.3,3482.2,1.5115227]
[1719828836602,16.27685799,3482.3,3482.2,1.5115227]
[1719828836933,15.46885799,3482.3,3482.2,1.5115227]
[1719828848321,16.27685799,3482.3,3482.2,1.5115227]
[1719828849236,15.46885799,3482.3,3482.2,1.5115227]
[1719828849431,16.27685799,3482.3,3482.2,1.5115227]
[1719828851270,19.14851799,3482.3,3482.2,1.5115227]
[1719828851751,16.27685799,3482.3,3482.2,1.5115227]
[1719828852064,19.14851799,3482.3,3482.2,1.5115227]
[1719828857955,18.34051799,3482.3,3482.2,1.5115227]
[1719828858160,19.14851799,3482.3,3482.2,1.5115227]
[1719828859825,18.34051799,3482.3,3482.2,1.5115227]
[1719828860056,19.14851799,3482.3,3482.2,1.5115227]
[1719828863547,18.34051799,3482.3,3482.2,1.5115227]
[1719828863855,19.14851799,3482.3,3482.2,1.5115227]
[1719828867669,18.34051799,3482.3,3482.2,1.5115227]
[1719828867835,19.14851799,3482.3,3482.2,1.5115227]
[1719828874901,22.17551799,3482.3,3482.2,1.5115227]
[1719828875040,25.04717799,3482.3,3482.2,2.7e-06]
[1719828875244,25.59717799,3482.3,3482.2,2.7e-06]
[1719828875441,25.89688609,3482.3,3482.2,2.7e-06]
[1719828880980,11.979829,3482.3,3482.2,2.7e-06]
[1719828887390,14.851489,3482.3,3482.2,2.7e-06]
[1719828887559,17.170489,3482.3,3482.2,2.7e-06]
[1719828896595,14.851489,3482.3,3482.2,2.7e-06]
[1719828899802,11.979829,3482.3,3482.2,2.7e-06]
[1719828900626,13.4944019,3482.3,3482.2,2.7e-06]
[1719828902327,16.3660619,3482.3,3482.2,2.7e-06]
[1719828910861,19.02858695,3482.3,3482.2,2.7e-06]
[1719828912071,24.92924695,3482.3,3482.2,2.7e-06]
[1719828912225,25.47924695,3482.3,3482.2,2.7e-06]
[1719828913057,22.60758695,3482.3,3482.2,2.7e-06]
[1719828913258,16.62698695,3482.3,3482.2,2.7e-06]
[1719828913459,17.43498695,3482.3,3482.2,2.7e-06]
[1719828913759,12.24075405,3482.3,3482.2,2.7e-06]
[1719828913974,13.04875405,3482.3,3482.2,2.7e-06]
[1719828914141,12.74904595,3482.3,3482.2,2.7e-06]
[1719828914827,13.04877512,3482.3,3482.2,2.7e-06]
[1719828915026,12.78785007,3482.3,3482.2,2.7e-06]
[1719828918904,18.31774191,3482.3,3482.2,2.7e-06]
[1719828919096,15.44608191,3482.3,3482.2,2.7e-06]
[1719828919390,18.31774191,3482.3,3482.2,2.7e-06]
[1719828924404,21.89674191,3482.3,3482.2,2.7e-06]
[1719828925417,24.76840191,3482.3,3482.2,2.7e-06]
[1719828929016,24.76837442,3482.3,3482.2,2.7e-06]
[1719828929683,21.89671442,3482.3,3482.2,2.7e-06]
[1719828930085,21.08871442,3482.3,3482.2,2.7e-06]
[1719828930294,21.89671442,3482.3,3482.2,2.7e-06]
[1719828933893,16.07775442,3482.3,3482.2,2.7e-06]
[1719828934964,12.74902525,3482.3,3482.2,2.4314027]
[1719828935101,8.8084609,3482.3,3482.2,2.4314027]
[1719828936497,5.8084609,3482.3,3482.2,2.4314027]
[1719828936742,2.9368009,3482.3,3482.2,2.4314027]
[1719828936950,5.8084609,3482.3,3482.2,2.4314027]
[1719828937133,5.8084609,3482.3,3482.2,2.75534297]
[1719828940062,5.8084609,3482.3,3482.2,2.4314027]
[1719828945483,5.8084609,3482.3,3482.2,2.7e-06]